Cogmind - Beta 17 @@@ ROGUE MODE // 2026.06.28 @ 13:34:43 Player: winnking222 Result: Self-destructed Performance ------------- Evolutions (1) 500 Regions Visited (3) 600 Robots Destroyed (85) 425 Value Destroyed (1922) 1922 Prototype IDs (4) 80 Alien Tech Used (0) 0 Bonus (8146) 8146 TOTAL SCORE: 11673 Bonus ------- High Alert Combat Kills 132 Follower Combat Kills 14 Prayed to X0-1V1 5000 Major X0-1V1 Interference 3000 Cogmind --------- Core Integrity 58/200 Matter 273/300 Energy 1871/1960 System Corruption 19% Temperature Cool (0) Movement Treading (240) Ox1 Location -9/Materials Parts ------- > --- POWER (2) -------- Cooled Ion Engine Cooled Ion Engine (fused) > --- PROPULSION (3) --- Light Treads Light Treads > --- UTILITY (2) ------ High-capacity Storage Unit X0-1V1's Piety Tracker > --- WEAPON (3) ------- Heavy Assault Rifle Autogun Autogun (fused) > --- INVENTORY (21) --- Light Treads Light Treads Light Treads Light Treads Light Treads Light Treads Carbon-fiber Leg Armored Wheel Cooling System Cooling System Small Storage Unit High-capacity Matter Pod (34) Seismic Detector Light Armor Plating Light Armor Plating Medium Armor Plating Autogun Rocket Launcher Plasma Cutter Peak State ------------ > --- POWER ------------ Cooled Ion Engine Light Angular Momentum Engine > --- PROPULSION ------- Light Treads Light Treads > --- UTILITY ---------- High-capacity Storage Unit X0-1V1's Piety Tracker > --- WEAPON ----------- Beamcaster Heavy Assault Rifle Heavy Assault Rifle > --- INVENTORY -------- Light Treads Carbon-fiber Leg Small Storage Unit Seismic Detector Light Armor Plating Light Armor Plating Light Armor Plating Improved EM Shotgun [Rating: 34] Favorites ----------- Power Ion Engine Engine Ion Engine Propulsion Light Treads Treads Light Treads Wheel Wheel Utility X0-1V1's Piety Tracker Device X0-1V1's Piety Tracker Storage High-capacity Storage Unit Protection Light Armor Plating Weapon Heavy Assault Rifle Energy Gun Medium Laser Ballistic Gun Heavy Assault Rifle Build | -11 -10 -10 -9 ------- Run | Yrd Mat Min Mat Slots Evolved 2 | . . . 2 Power . | . . . . Propulsion 1 | . . . 1 Utility . | . . . . Weapon 1 | . . . 1 Parts Attached 43 | 7 3 5 28 Power 8 | 1 1 . 6 Engine 8 | 1 1 . 6 Core . | . . . . Reactor . | . . . . Propulsion 12 | 2 . 2 8 Treads 11 | 2 . 2 7 Leg . | . . . . Wheel 1 | . . . 1 Hover . | . . . . Flight . | . . . . Utility 7 | 2 2 1 2 Device 3 | 1 1 . 1 Storage 2 | 1 . 1 . Processor . | . . . . Hackware . | . . . . Protection 2 | . 1 . 1 Artifact . | . . . . Weapon 16 | 2 . 2 12 Energy Gun 4 | 1 . . 3 Energy Cannon . | . . . . Ballistic Gun 12 | 1 . 2 9 Ballistic Cannon . | . . . . Launcher . | . . . . Special Weapon . | . . . . Impact Weapon . | . . . . Slashing Weapon . | . . . . Piercing Weapon . | . . . . Special Melee Weapon . | . . . . Unidentified Prototypes 4 | . 1 . 3 Parts Lost 14 | . . 5 9 Power 1 | . . 1 . Propulsion 6 | . . 2 4 Utility . | . . . . Weapon 7 | . . 2 5 Highest Loss Streak 2 | . . 2 2 To Critical Strikes . | . . . . Average Backups 11 | 5 7 8 15 Power . | . . . . Propulsion 3 | 3 2 2 4 Utility 5 | . 3 4 7 Weapon 1 | . . 1 1 Tool/Special . | . . . . Unused Backups 23 | . 4 . 19 Power 1 | . . . 1 Propulsion 11 | . 3 . 8 Utility 7 | . . . 7 Weapon 3 | . 1 . 2 Tool/Special 1 | . . . 1 Average Slot Usage (%) 98 | . 100 98 98 Engine 17 | . 14 12 20 Treads 24 | . 28 27 22 Device 9 | . 7 14 9 Storage 12 | . 14 14 11 Protection 2 | . 6 . 1 Energy Gun 7 | . 14 7 4 Ballistic Gun 23 | . 14 20 27 Peak Build Rating 34 | 7 19 21 34 Average Rating 21 | 5 8 19 29 On Entrance 11 | . 7 19 19 Avg Prop Armor Cover (%) 13 | . . . 13 Naked Turns . | . . . . Heaviest Build 72 | 12 16 48 72 Greatest Support 60 | 40 40 40 60 Greatest Overweight (x) 5 | . . 1 5 Average Overweight (x) . | . . . . Largest Inventory Capacity 21 | 8 8 20 21 Average Capacity 15 | 7 8 12 20 Most Carried 21 | 7 8 10 21 Average Carried 11 | 5 7 8 15 Final Capacity 21 | 8 8 20 21 Final Carried 19 | 6 8 10 19 Class Distribution -------------------- 44% | Mutant 41% | Scavenger-Gunner 6% | Scavenger-Tank 4% | Gunner Dominant Class ---------------- Mutant | -10/Materials Mutant | -10/Mines Scavenger-Gunner | -9/Materials Resources | -11 -10 -10 -9 ----------- Run | Yrd Mat Min Mat Matter Collected 2060 | 289 63 70 1638 Remotely . | . . . . Salvage Created 2925 | 211 236 199 2279 Parts 185 | 19 17 10 139 Haulers Intercepted 6 | . 1 . 5 Recyclers Shooed 1 | 1 . . . Parts Field Recycled . | . . . . Retrieved Matter . | . . . . Parts Self-Destructed . | . . . . Prevented . | . . . . Parts Restored . | . . . . Kills | -11 -10 -10 -9 ------- Run | Yrd Mat Min Mat Combat Hostiles Destroyed 53 | . 9 5 39 Guns 53 | . 9 5 39 Classes Destroyed 11 | 3 3 1 4 Worker 5 | 1 . . 4 Tunneler 6 | 5 . . 1 Hauler 6 | . 1 . 5 Recycler 3 | 1 . . 2 Operator 1 | . . . 1 Watcher 11 | . 2 . 9 Swarmer 17 | . 9 1 7 Grunt 23 | . . 4 19 Brawler 1 | . . . 1 Sentry 10 | . . . 10 Hunter 2 | . . . 2 Best Kill Streak 6 | 6 3 2 5 Combat Bots Only 4 | . 3 2 4 Max Kills in Single Turn 2 | 1 2 1 2 Gunslinging 1 | . 1 . 1 Exploded . | . . . . Melee . | . . . . Uniques/NPCs Destroyed . | . . . . Combat | -11 -10 -10 -9 -------- Run | Yrd Mat Min Mat Hostile Shots Fired 297 | . 46 70 181 Missed 72 | . 11 17 44 Hits 225 | . 35 53 137 Projectile 225 | . 35 53 137 Critical Strikes 7 | . 1 2 4 Damage Taken 2855 | . 297 734 1824 Core 385 | . 24 177 184 Absorbed by Shields . | . . . . Core Remaining (%) 59 | 100 . 19 . Volleys Fired 195 | 19 35 24 117 Largest 3 | 2 2 2 3 Hottest 121 | 70 70 70 121 Shots Fired 496 | 38 70 47 341 Gun 496 | 38 70 47 341 Cannon . | . . . . Launcher . | . . . . Special . | . . . . Kinetic 384 | 19 35 34 296 Thermal 112 | 19 35 13 45 Explosive . | . . . . Electromagnetic . | . . . . Robot Hit Streak 17 | 7 7 7 17 Robot Miss Streak 5 | 2 3 3 5 Penetration Max . | . . . . Secondary Targets 12 | . 3 2 7 Max Gunslinging Chain 1 | . 1 1 1 Shots Hit Robots 289 | 22 33 31 203 Core Hits 122 | 9 17 14 82 Critical Kills . | . . . . Critical Parts Destroyed . | . . . . Critical Strikes 4 | . 4 . . Burn 4 | . 4 . . Melee Attacks . | . . . . Impact . | . . . . Slashing . | . . . . Piercing . | . . . . Sneak Attacks . | . . . . Combat Hostiles . | . . . . Follow-up Attacks . | . . . . Damage Inflicted 4092 | 144 412 285 3251 Guns 4039 | 144 412 269 3214 Cannons . | . . . . Explosions . | . . . . Melee . | . . . . Ramming 53 | . . 16 37 Kinetic 2968 | 45 126 192 2605 Thermal 1071 | 99 286 77 609 Explosive . | . . . . Electromagnetic . | . . . . Impact . | . . . . Slashing . | . . . . Piercing . | . . . . Highest Corruption 19 | . . . 19 Average Corruption 11 | . . . 11 Corruption Purged . | . . . . Corruption Blocked . | . . . . Effects 94 | . . . 94 Message Errors 19 | . . . 19 Matter Fused 25 | . . . 25 Heat Flow Errors 13 | . . . 13 Energy Discharges 4 | . . . 4 Parts Fused 1 | . . . 1 Data Loss (minor) 20 | . . . 20 Data Loss (major) 5 | . . . 5 Alerts 1 | . . . 1 Misdirections 3 | . . . 3 Weapon Failures 3 | . . . 3 Overload Shots . | . . . . Overflow Damage . | . . . . Projectiles . | . . . . Explosions . | . . . . Melee . | . . . . Knockbacks 1 | . . . 1 Impact 1 | . . . 1 Kinetic . | . . . . Secondary . | . . . . Self-Inflicted Damage . | . . . . Shots . | . . . . Rammed 6 | . 1 3 2 Targets Rammed 7 | . 1 3 3 Kicked . | . . . . Crushed 1 | . . . 1 Highest Temperature 396 | 160 148 160 396 Average Temperature 89 | 63 53 44 102 Received Heat Transfer 1071 | . . 417 654 Effects 11 | . . . 11 Shutdowns 1 | . . . 1 Energy Bleed 1 | . . . 1 Interference 8 | . . . 8 Damage (minor) 1 | . . . 1 Siege Activations . | . . . . Martial Activations . | . . . . Shielding Activations . | . . . . Robots Disrupted . | . . . . Combat Hostiles . | . . . . Robots Corrupted 1 | . . . 1 Combat Hostiles . | . . . . Parts Fried 3 | . . . 3 Impact Corruptions 1 | . . . 1 Robots Melted . | . . . . Combat Hostiles . | . . . . Parts Melted 3 | . 2 . 1 Heat Transferred 2738 | 296 1147 222 1073 Parts Sabotaged . | . . . . Parts Stolen . | . . . . Parts Stripped . | . . . . Power Chain Reactions . | . . . . Alert | -11 -10 -10 -9 ------- Run | Yrd Mat Min Mat Maximum Alert Level 3 | . . . 3 Low Security (%) 71 | 100 100 100 50 Level 1 11 | . . . 20 Level 2 4 | . . . 8 Level 3 11 | . . . 20 Level 4 . | . . . . Level 5 . | . . . . High Security . | . . . . Max Security . | . . . . Peak Influence 812 | 10 128 64 812 Initial . | . . . . Average 180 | 2 32 9 298 Influence Increases 2038 | 35 298 174 1531 Destroy 0b10 Robot/C 1100 | . 180 140 780 Destroy 0b10 Robot/NC 160 | 35 15 . 110 Destroy Leader 266 | . 36 30 200 Allied During Kill 4 | . . 4 . Successful Hack 48 | . 22 . 26 Disable Machine 60 | . . . 60 Destroy Structure 9 | . . . 9 Partial Spotted 15 | . . . 15 Lose Combat Pursuer 120 | . 45 . 75 Miscellaneous 256 | . . . 256 Influence Decreases 1239 | 35 298 174 732 Time Decay 1099 | 35 298 124 642 Lost Part 120 | . . 30 90 Lost Ally 20 | . . 20 . Squads Dispatched 8 | . 1 . 7 Investigation 4 | . 1 . 3 Extermination . | . . . . Reinforcement 3 | . . . 3 Assault 1 | . . . 1 Garrison . | . . . . Intercept . | . . . . Searches Triggered . | . . . . Construction Impeded . | . . . . Haulers Reinforced . | . . . . Active Scanning Responses . | . . . . Cargo Convoy Interrupts . | . . . . Stealth | -11 -10 -10 -9 --------- Run | Yrd Mat Min Mat Distress Signals 11 | . 1 . 10 Communications Jammed . | . . . . Distress Signals . | . . . . Times Spotted 104 | . 16 12 76 Peak Tracking Total 6 | . 3 3 6 Tactical Retreats 5 | . 1 . 4 Traps | -11 -10 -10 -9 ------- Run | Yrd Mat Min Mat Traps Triggered 5 | . 2 . 3 Indirectly . | . . . . Trap Hack Attempts . | . . . . Triggered . | . . . . Disarmed . | . . . . Reprogrammed . | . . . . Reused . | . . . . Traps Extracted . | . . . . Installed . | . . . . Triggered . | . . . . Machines | -11 -10 -10 -9 ---------- Run | Yrd Mat Min Mat Machines Disabled 4 | . . . 4 Max in Single Turn 1 | . . . 1 Machines Repaired . | . . . . Machines Dismantled . | . . . . Machines Sabotaged . | . . . . Overloaded Fab Kills . | . . . . Hacking | -11 -10 -10 -9 --------- Run | Yrd Mat Min Mat Machines Accessed 17 | . 8 . 9 Terminals 16 | . 8 . 8 Fabricators . | . . . . Repair Stations . | . . . . Recycling Units . | . . . . Scanalyzers 1 | . . . 1 Garrison Access . | . . . . Total Hacks 53 | . 30 . 23 Successful 28 | . 17 . 11 Failed 24 | . 13 . 11 Catastrophic 2 | . . . 2 Database Lockouts 1 | . . . 1 Manual 44 | . 27 . 17 Terminals 50 | . 30 . 20 Fabricators . | . . . . Repair Stations . | . . . . Recycling Units . | . . . . Scanalyzers 3 | . . . 3 Garrison Access . | . . . . Terminal Hacks 6 | . 5 . 1 Part Schematic 1 | . 1 . . Emergency Access Points 1 | . 1 . . Locate Traps 2 | . 2 . . Hauler Manifests 2 | . 1 . 1 Fabricator Hacks . | . . . . Repair Station Hacks . | . . . . Recycling Unit Hacks . | . . . . Scanalyzer 1 | . . . 1 Retrieve Study 1 | . . . 1 Garrison Access Hacks . | . . . . Unauthorized Hacks 21 | . 12 . 9 Terminals 21 | . 12 . 9 Assimilate 1 | . . . 1 Botnet 7 | . 4 . 3 Operators 1 | . 1 . . Skim 12 | . 7 . 5 Fabricators . | . . . . Repair Stations . | . . . . Recycling Units . | . . . . Scanalyzers . | . . . . Garrison Access . | . . . . Data Cores Recovered . | . . . . Used . | . . . . Hacking Detections 15 | . 8 . 7 Full Trace Events 2 | . 1 . 1 Feedback Events . | . . . . Feedback Blocked . | . . . . Robot Schematics Acquired . | . . . . Robots Built . | . . . . Authchips . | . . . . Time . | . . . . Total Robot Build Rating . | . . . . Part Schematics Acquired 1 | . 1 . . Parts Built . | . . . . Authchips . | . . . . Time . | . . . . Total Part Build Rating . | . . . . Part Studies Acquired 1 | . . . 1 Parts Repaired . | . . . . Time . | . . . . Parts Recycled . | . . . . Recycled Matter . | . . . . Retrieved Matter . | . . . . Retrieved Components . | . . . . Parts Scanalyzed . | . . . . Part Schematics Acquired . | . . . . Parts Damaged . | . . . . Bothacking | -11 -10 -10 -9 ------------ Run | Yrd Mat Min Mat Used RIF Installer . | . . . . Robots Hacked . | . . . . Non-combat . | . . . . Combat . | . . . . Robot Hacks Applied . | . . . . Relay Couplers Released . | . . . . Fabnet Peak Effective % . | . . . . Robots Rewired . | . . . . Allies Hacked . | . . . . Hacks Repelled . | . . . . Allies | -11 -10 -10 -9 -------- Run | Yrd Mat Min Mat Total Allies 1 | . . 1 . Largest Group 1 | . . 1 . Highest-Rated Group 31 | . . 31 . Highest-Rated Ally 31 | . . 31 . Total Orders . | . . . . Ally Attacks 7 | . . 7 . Total Damage 127 | . . 127 . Kills 2 | . . 2 . Allies Corrupted . | . . . . Allies Melted . | . . . . X0-1V1 Amusement Gains 40 | . 20 . 20 Good Acts 8 | . . 1 7 Bad Acts 21 | . . 2 19 Intel | -11 -10 -10 -9 ------- Run | Yrd Mat Min Mat Active Infowar (turns) 569 | 20 549 . . Seismic 569 | 20 549 . . Robot Analysis Total . | . . . . Derelict Logs Recovered 2 | . . 2 . Drone Launches . | . . . . Drone Recoveries . | . . . . Exploration | -11 -10 -10 -9 ------------- Run | Yrd Mat Min Mat Turns Passed 4955 | 174 1251 691 2839 Spaces Moved 1966 | 69 605 329 963 Core 7 | 7 . . . Treads 1956 | 62 605 329 960 Legs . | . . . . Wheels 3 | . . . 3 Hover . | . . . . Flight . | . . . . Fastest Speed 50 | 50 160 160 155 Average Speed 201 | 148 160 185 236 Slowest Speed 320 | 160 160 240 320 Overloaded Moves . | . . . . Propulsion Burnouts . | . . . . Robots Hopped . | . . . . Potential Cave-ins . | . . . . Cave-ins Triggered . | . . . . Exploration Rate (%) 62 | 4 97 63 85 Regions Visited 3 Branch Regions 1 Pre-discovered Areas 1 | . 1 . . Known Exits Taken 1 | . . 1 . Unknown Exits Taken 2 | 1 1 . . Scrap Searched 1 | . . 1 . Spaces Dug . | . . . . Terrain Destroyed . | . . . . Melee . | . . . . Projectile . | . . . . AOE . | . . . . Terrain Rammed . | . . . . Walls Destroyed . | . . . . Machines Disabled . | . . . . Actions | -11 -10 -10 -9 --------- Run | Yrd Mat Min Mat Total 2583 | 105 826 369 1283 Wait 283 | . 170 3 110 Move 1963 | 68 604 328 963 Hop . | . . . . Pick Up 65 | 11 7 6 41 Fast Attach 3 | 2 1 . . Attach 32 | 5 . 4 23 Detach . | . . . . Swap 12 | . 2 1 9 Drop 23 | . 6 . 17 Fire 195 | 19 35 24 117 Melee . | . . . . Ram . | . . . . Kick . | . . . . Crush 7 | . 1 3 3 Escape Stasis . | . . . . Rewire . | . . . . Trap . | . . . . Miscellaneous . | . . . . Route ------- -11/Scrapyard -10/Materials (discovered 6 exits: *Mat x3 / [*Min x2] / [*Sub]) -10/Mines -9/Materials (discovered 4 exits: *Mat x3 / *Min) History --------- Turn | Location | Event 9 | -11/Scrapyard | Discovered new exit (range 16) 175 | -11/Scrapyard | Entered Materials 306 | -10/Materials | Build established: Mutant 310 | -10/Materials | Discovered new exit (range 11) 475 | -10/Materials | Discovered new exit (range 6) 694 | -10/Materials | Discovered new exit (range 4) 1052 | -10/Materials | Discovered new exit (range 7) 1178 | -10/Materials | Learned location of Recycling (-8) 1230 | -10/Materials | Learned 4 Recycling zone layouts 1264 | -10/Materials | Discovered new exit (range 10) 1274 | -10/Materials | Identified exit to Materials 1280 | -10/Materials | Prayed at D.C.S.S. Altar Unit 1308 | -10/Materials | Learned 4 Subcaves zone layouts 1330 | -10/Materials | Learned location of 1 exit from Recycling 1342 | -10/Materials | Learned location of 1 exit from Recycling 1356 | -10/Materials | Learned 4 Subcaves zone layouts 1378 | -10/Materials | Learned location of 1 exit from Storage 1409 | -10/Materials | Learned Storage stockpile data 1426 | -10/Materials | Entered Mines 1445 | -10/Mines | Met a Derelict bent on vengeance 1598 | -10/Mines | Learned 8 Materials zone layouts 1667 | -10/Mines | X0-1V1 revealed exit location to -9/Materials 1726 | -10/Mines | Escorted by a lone wolf Derelict 1803 | -10/Mines | Learned 2 Materials zone layouts 1853 | -10/Mines | Core integrity fell below 50% 2108 | -10/Mines | Core integrity fell below 20% 2117 | -10/Mines | Entered Materials 2117 | -9/Materials | Evolved 2 slots: Propulsion x1, Weapon x1 2118 | -9/Materials | Identified exit to Mines 2119 | -9/Materials | Identified exit to Materials 2219 | -9/Materials | X0-1V1 vaporized surrounding terrain (radius 15) 2305 | -9/Materials | Central database locked down 2386 | -9/Materials | X0-1V1 mutated your Propulsion slot to Power slot 2429 | -9/Materials | Energy capacity permanently improved by X0-1V1 (+200; -100 max core) 2683 | -9/Materials | Inventory capacity permanently improved by X0-1V1 (+1; -100 max core) 2720 | -9/Materials | Build established: Scavenger-Gunner 2758 | -9/Materials | X0-1V1 vaporized surrounding terrain (radius 22) 3070 | -9/Materials | X0-1V1 sent someone to keep an eye on you 3213 | -9/Materials | X0-1V1 revealed exit location to -8/Materials 3541 | -9/Materials | System corruption reached 10% 3872 | -9/Materials | X0-1V1 sent you into danger 3882 | -9/Materials | Learned 4 Recycling zone layouts 3910 | -9/Materials | Learned Storage security intel 3951 | -9/Materials | Learned 4 Materials zone layouts 4183 | -9/Materials | Build established: Scavenger-Tank 4375 | -9/Materials | X0-1V1 added 0b10 threat records associated with you (major) 4385 | -9/Materials | X0-1V1 sent hostile Y-45 Defender (x2) 4389 | -9/Materials | Core integrity fell below 50% 4406 | -9/Materials | X0-1V1 enhanced Transport squad support 4522 | -9/Materials | Build established: Scavenger-Gunner 4917 | -9/Materials | First assault squad dispatched 4951 | -9/Materials | X0-1V1 whisked you away to safety 4954 | -9/Materials | Propulsion slot count permanently improved by X0-1V1 (+1) 4956 | -9/Materials | Self-destructed Last Messages --------------- 04914_ System corrupted: Heat flow error (+132). 04917_ ALERT: Unidentified disturbance in Zone 4V, assault force dispatched. 04919_ X0-1V1 is bored! 04923_ X0-1V1: "Use it or lose it, I always say." 04923_ Autogun fused. 04923_ Cld. Ion Engine fused. 04928_ W-16 Scout sends out distress signal. 04929_ System corrupted: Energy discharge (-666). 04939_ Triggered Shock Trap. 04939_ The floor emits a surge of raw power. 04939_ System corrupted (+1). 04941_ U-05 Engineer lays Concrete. 04947_ System corrupted: Heat flow error (+143). 04951_ X0-1V1: "You need a change of scenery." 04954_ X0-1V1: "If I've learned anything from roguelikes, it's that more appendages equals more fun." (permanent +1 Propulsion slot) Map ----- +----------------------------------------------------+ | ??# ???# #?????????????# #???? | | ??# ### #?????????????# #???? | | ??# # #???????????### ###?? | | ????# #?########### #?? | | ????## # %#?# ## #?? | | ?????####### #?# """ ## " #?? | | ???????????# #?# """ ## #?? | | ?########### #?# """ ## #?? | | ?# # #?# ### ##?? | | ?# # #?# """ #?# #??? | | ?# [[ + #?# """ #?# #??? | | ?# [[ # #?# """ #?# #??? | | ?# [ """ # #?# #?# #??? | | ?# """ # #######+####?# #??? | | ?# ! """ # #?# #??? | | ?# # < ### #??? | | ?########### #??? | | ??????????#####/############# #??? | | ??????????# #??#######+##### | | ??????????# """ """ #??# # | | ??????????# """ """ #??# """ # | | ??????????# """ """ #??#""""" # | | ??????????# """ """ #??#""""" ] # | | ??????????# """ """ #??#""""" [ # | | ??????????# #??# """ # | | ??????????# #??# @ # | | ??????????###########??############# | | | | | | | | | | | | | | | | | | | | | | | | | | | | | | | | | | | | | | | | | | | | | | | +----------------------------------------------------+ Best States ------------- Heat Dissipation 28 Energy Generation 27 Energy Capacity 1960 Matter Stores 300 Matter Capacity 300 Sight Range 18 Terrain Scan Density 10 Armor Coverage 225 Evasion (%) 50 Recoil Reduction 3 Item Schematics ----------------- Hcp. Storage Unit | -10/Materials | Hacked Robot Schematics ------------------ None Fabricated ------------ Nothing Repaired ---------- Nothing Studied --------- Hvy. Assault Rifle | -9/Materials | Hacked Alien Tech Used ----------------- None Achievements -------------- None Challenges ------------ None Game ------ Seed TractorPhaseDisplacer Manual? 0 Play Time 00:27:15 Cumulative 200.5 hours Start 2026.06.28 @ 13:10:26 End 2026.06.28 @ 13:34:43 Sessions 1 Manual Loads 0 Difficulty Rogue Special Mode None Game No. 285 Rogue 285 Adventurer 0 Explorer 0 Win Type - Total 3 Types 2/0/0/1/0/0/0/0/0/0 Lore% 74 Gallery% 69 Achievement% 56 Wizard Run 0 Options --------- Layout 1 ASCII 0 Keyboard 0 Movement Mouse Keybinds 0 Fullscreen 1 Font 24/Smallcaps Map View 50x35 Zoom Use 0% Tactical HUD 1 Map Filters NONE Filters NONE Steam 1 RUN: f82e1694-8a64-4b02-839b-26607ff1c688